bitfinex/quotes_SOLUSD_20240909
["timestamp","ask_amount","ask_price","bid_price","bid_amount"]
[1725892793946,0.8374188,127.87,127.86,16.5696]
[1725892795210,0.8374188,127.87,127.86,24.3906]
[1725892795408,0.8374188,127.87,127.86,16.5696]
[1725892797639,0.8374188,127.87,127.86,24.3906]
[1725892800321,0.8374188,127.87,127.86,16.5696]
[1725892800731,0.8374188,127.87,127.86,24.3906]
[1725892801925,0.8374188,127.87,127.86,16.5696]
[1725892802139,0.8374188,127.87,127.82,16.6477]
[1725892802346,7.8216,127.85,127.82,16.6477]
[1725892802638,7.8218,127.85,127.82,16.6477]
[1725892803344,7.8223,127.84,127.82,16.6477]
[1725892803528,7.8223,127.84,127.81,19.5589]
[1725892803727,7.8212,127.86,127.82,7.8234]
[1725892803932,7.8212,127.86,127.81,19.5589]
[1725892803933,7.8217,127.85,127.81,27.3826]
[1725892804139,7.8224,127.84,127.81,19.5589]
[1725892804830,7.8224,127.84,127.81,20.0283]
[1725892805024,7.8214,127.86,127.82,7.8234]
[1725892805239,0.8374188,127.87,127.81,20.0283]
[1725892805447,45.8374188,127.87,127.81,20.0283]
[1725892806327,7.8216,127.85,127.81,27.852]
[1725892806941,7.8216,127.85,127.81,20.0283]
[1725892807148,7.8216,127.85,127.81,27.852]
[1725892807642,7.8212,127.86,127.82,7.8234]
[1725892807845,0.8374188,127.87,127.83,19.5567]
[1725892808344,0.8374188,127.87,127.83,27.3793]
[1725892809348,53.6579188,127.87,127.83,27.3793]
[1725892810039,0.8374188,127.87,127.84,7.8222]
[1725892810463,0.8374188,127.87,127.81,0.4694]
[1725892810630,7.823,127.83,127.81,0.4694]
[1725892810940,52.8235,127.82,127.81,0.4694]
[1725892812357,19.5537,127.86,127.81,0.4694]
[1725892812525,7.8227,127.84,127.81,0.4694]
[1725892812854,7.8227,127.84,127.78,21.5643]
[1725892812855,50.0,127.81,127.78,2.0]
[1725892813143,27.3886,127.79,127.78,2.0]
[1725892813349,72.3886,127.79,127.78,2.0]
[1725892813553,69.5677,127.77,127.7,6.3898]
[1725892813728,69.5677,127.77,127.69,15.1558]
[1725892813729,45.0,127.76,127.69,15.1558]
[1725892813930,7.8301,127.72,127.69,15.1558]
[1725892814457,7.8303,127.71,127.67,7.8326]
[1725892814641,7.8297,127.72,127.67,7.8326]
[1725892815635,7.8297,127.72,127.67,7.8323]
[1725892815838,39.1292,127.79,127.65,15.2032]
[1725892815839,45.0,127.71,127.65,15.2032]
[1725892816057,45.0,127.71,127.63,26.0906]
[1725892816058,7.8333,127.66,127.63,6.5033]
[1725892816458,7.8333,127.66,127.61,24.2043]
[1725892816843,7.8327,127.67,127.62,7.8357]
[1725892817550,114.5765,127.71,127.62,7.8357]
[1725892817551,7.831,127.7,127.62,7.8357]
[1725892817850,45.0,127.69,127.63,8.58430015]
[1725892818172,7.8297,127.72,127.63,0.74940015]
[1725892818456,45.0,127.71,127.63,0.74940015]
[1725892818844,45.0,127.71,127.66,7.833]
[1725892819440,52.8304,127.71,127.65,7.8338]
[1725892819959,52.8304,127.71,127.66,7.8331]
[1725892820146,45.0,127.71,127.67,7.8324]
[1725892820350,45.0,127.71,127.66,19.5819]
[1725892820657,45.0,127.72,127.69,7.8314]
[1725892820861,45.0,127.73,127.69,7.8314]
[1725892821763,17.26883414,127.76,127.7,19.576]
[1725892821764,9.19003414,127.76,127.7,19.576]
[1725892821967,7.8277,127.76,127.7,19.576]
[1725892822143,7.8277,127.76,127.71,7.8301]
[1725892822863,45.0,127.75,127.71,7.8301]
[1725892823476,7.8266,127.77,127.7,19.576]
[1725892823768,7.8266,127.77,127.72,7.8294]
[1725892824158,9.18820276,127.78,127.73,7.8289]
[1725892824478,56.43860735,127.82,127.68,15.1069]
[1725892824479,25.14340735,127.82,127.77,7.8265]
[1725892824848,7.8241,127.82,127.77,7.8265]
[1725892825556,7.8243,127.81,127.76,27.3941]
[1725892825760,57.8243,127.81,127.76,27.3941]
[1725892826081,50.0,127.81,127.76,19.5672]
[1725892826374,7.8248,127.8,127.76,19.5672]
[1725892826747,50.0,127.81,127.71,6.0861]
[1725892826950,7.8267,127.77,127.71,6.0861]
[1725892827148,7.8265,127.78,127.73,7.829]
[1725892827349,45.0,127.77,127.73,7.829]
[1725892827651,7.8254,127.79,127.74,7.8282]
[1725892828375,7.8254,127.79,127.75,7.8277]
[1725892828560,50.0,127.81,127.76,7.8271]
[1725892828875,52.825,127.8,127.76,7.8271]
[1725892829069,52.825,127.8,127.75,7.8276]
[1725892829681,7.8254,127.79,127.75,7.8276]
[1725892830688,7.8276,127.76,127.72,7.8295]
[1725892830966,7.8267,127.77,127.72,7.8295]
[1725892831551,7.8273,127.76,127.72,7.8295]
[1725892832073,52.8278,127.75,127.71,25.6609]
[1725892832369,7.8285,127.74,127.68,41.0135]
[1725892832687,95.0,127.75,127.68,41.0135]
[1725892832848,7.8297,127.72,127.68,34.6861]
[1725892833656,7.8302,127.71,127.68,34.6861]
[1725892833857,7.8297,127.72,127.68,34.6861]
[1725892835264,7.8291,127.73,127.68,42.5179]
[1725892835469,7.8291,127.73,127.69,7.831]
[1725892836557,7.8291,127.73,127.68,42.518]
[1725892836761,45.0,127.72,127.68,42.518]
[1725892836964,7.8291,127.73,127.69,7.8311]
[1725892837365,7.8285,127.74,127.7,7.8306]
[1725892837567,19.5668,127.77,127.7,7.8306]
[1725892837568,7.8278,127.75,127.71,7.83]
[1725892837760,7.8273,127.76,127.71,9.39597309]
[1725892837960,50.0,127.79,127.7,19.5765]
[1725892837961,50.0,127.77,127.7,19.5765]
[1725892838184,7.8282,127.75,127.71,7.8301]
[1725892838484,7.8284,127.74,127.7,27.4072]
[1725892838787,7.8298,127.72,127.68,22.9388]
[1725892839483,7.8306,127.71,127.68,15.1069]
[1725892839687,7.8297,127.72,127.68,22.9385]
[1725892840276,7.8291,127.73,127.69,7.8314]
[1725892840588,7.8298,127.72,127.68,22.9389]
[1725892842244,7.8292,127.73,127.69,7.8312]
[1725892843083,7.8298,127.72,127.68,22.9389]
[1725892843269,7.8292,127.73,127.69,7.8314]
[1725892843468,19.5687,127.76,127.69,7.8314]
[1725892843469,7.8286,127.74,127.7,7.8308]
[1725892843692,45.0,127.73,127.7,7.8308]
[1725892843862,45.0,127.73,127.69,20.89169459]
[1725892843863,52.829,127.73,127.69,27.4096]
[1725892844064,7.8297,127.72,127.68,15.1069]
[1725892844370,7.8308,127.7,127.68,15.1069]
[1725892844587,7.8304,127.71,127.68,15.1069]
[1725892845998,7.8314,127.69,127.68,15.1069]
[1725892846316,7.8311,127.7,127.68,15.1069]
[1725892846587,7.8314,127.69,127.68,15.1069]
[1725892846891,7.8309,127.7,127.68,15.1069]
[1725892847472,7.8333,127.66,127.65,22.9206]
[1725892847770,7.833,127.67,127.65,22.9206]
[1725892848081,7.8339,127.65,127.62,25.9719]
[1725892848390,7.8335,127.66,127.62,33.8076]
[1725892848786,19.5848,127.65,127.56,41.8159]
[1725892848976,19.5848,127.65,127.58,7.8377]
[1725892848977,7.8357,127.63,127.58,7.8377]
[1725892850094,7.8358,127.62,127.58,7.8377]
[1725892850970,19.5837,127.66,127.57,7.8387]
[1725892850971,7.8363,127.61,127.57,7.8387]
[1725892851176,19.5837,127.66,127.56,22.2182]
[1725892851177,79.74150713,127.64,127.56,22.2182]
[1725892851385,7.8383,127.58,127.56,22.2182]
[1725892851581,7.8376,127.59,127.56,22.2182]
[1725892851789,7.8364,127.61,127.57,1.31163433]
[1725892851974,7.8364,127.61,127.56,22.2182]
[1725892852285,7.837,127.6,127.56,30.0574]
[1725892853604,7.837,127.6,127.56,22.2182]
[1725892854174,7.837,127.6,127.56,30.0574]
[1725892854901,7.8365,127.61,127.56,30.0574]
[1725892855378,7.8365,127.61,127.57,7.8387]
[1725892855578,7.8365,127.61,127.56,30.0574]
[1725892856112,45.0,127.63,127.57,20.90606425]
[1725892856976,45.0,127.63,127.58,7.838]
[1725892856977,7.8358,127.62,127.58,7.838]
[1725892857302,7.8358,127.62,127.57,20.90606425]
[1725892857303,7.8364,127.61,127.57,19.5967]
[1725892857601,20.31744983,127.61,127.56,22.2182]
[1725892857907,10.15480713,127.6,127.56,22.2182]
[1725892858276,7.8381,127.59,127.56,22.2182]
[1725892858706,7.8381,127.59,127.53,16.5676]
[1725892858707,10.15480713,127.59,127.53,16.5676]
[1725892858998,7.8392,127.57,127.53,16.5676]
[1725892859198,7.8401,127.55,127.53,16.5676]
[1725892860979,7.8406,127.54,127.52,6.1336]
[1725892861587,64.5959,127.58,127.52,6.1336]
[1725892861816,7.8401,127.55,127.52,6.1336]
[1725892863111,7.8399,127.56,127.52,13.9754]
[1725892863611,19.592,127.61,127.54,19.6013]
[1725892864282,19.5874,127.64,127.57,16.2887]
[1725892864483,7.8366,127.61,127.57,16.2887]
[1725892864997,27.29050663,127.65,127.57,16.2887]
[1725892864998,7.8359,127.62,127.57,16.2887]
[1725892865202,27.29050663,127.65,127.58,28.75593157]
[1725892865593,7.8362,127.62,127.58,19.595]
[1725892865795,7.8362,127.62,127.57,24.1273]
[1725892865796,7.8369,127.61,127.57,16.2887]
[1725892866302,7.8371,127.6,127.57,16.2887]
[1725892866507,19.5882,127.63,127.57,16.2887]
[1725892866708,7.8392,127.57,127.53,23.8334]
[1725892866895,7.8392,127.57,127.53,15.9924]
[1725892867502,7.8396,127.56,127.53,15.9924]
[1725892868587,50.0,127.6,127.53,15.9924]
[1725892868588,7.8406,127.54,127.53,15.9924]
[1725892868798,50.0,127.6,127.52,6.1336]
[1725892868799,7.8412,127.53,127.52,6.1336]
[1725892869004,7.8412,127.53,127.5,15.7571]
[1725892869699,10.1626427,127.58,127.51,1.56825569]
[1725892869907,95.0,127.62,127.52,1.56786353]
[1725892870112,7.8386,127.58,127.53,7.8412]
[1725892870408,7.8386,127.58,127.54,1.56761768]
[1725892870984,20.0,127.61,127.53,7.8412]
[1725892871280,7.8398,127.56,127.52,19.6038]
[1725892871486,7.8398,127.56,127.52,27.4456]
[1725892871797,7.84,127.55,127.5,15.7571]
[1725892871984,7.8407,127.54,127.5,15.7571]
[1725892872409,7.8402,127.55,127.5,23.6]
[1725892872785,7.8413,127.53,127.5,15.7571]
[1725892872991,7.8408,127.54,127.5,15.7571]
[1725892873182,29.7574427,127.59,127.51,1.56810325]
[1725892873387,7.8407,127.54,127.5,15.7571]
[1725892873794,7.8401,127.55,127.5,23.6002]
[1725892874205,7.8408,127.54,127.5,23.6002]
[1725892874510,7.8408,127.54,127.5,15.7571]
[1725892874685,45.0,127.58,127.5,15.7571]
[1725892874686,7.8414,127.53,127.5,15.7571]
[1725892875515,7.8419,127.52,127.5,15.7571]
[1725892875720,19.5976,127.57,127.47,16.2529]
[1725892875721,7.8443,127.48,127.47,16.2529]
[1725892876688,7.8438,127.49,127.47,16.2529]
[1725892876893,10.1626427,127.53,127.47,16.2529]
[1725892876894,7.8431,127.5,127.47,16.2529]
[1725892877100,19.6026,127.54,127.47,16.2529]
[1725892877321,7.843,127.51,127.47,16.2529]
[1725892878039,7.8419,127.52,127.47,16.2529]
[1725892878326,7.8419,127.52,127.47,24.0977]
[1725892878814,7.8413,127.53,127.48,9.41257215]
[1725892879024,19.5981,127.57,127.49,21.17725958]
[1725892879219,7.841,127.54,127.5,7.8426]
[1725892879517,7.8408,127.54,127.51,1.56721447]
[1725892880417,20.31744983,127.58,127.51,1.56721447]
[1725892880418,10.15480713,127.58,127.52,1.56814894]
[1725892880624,7.8392,127.57,127.54,16.4296]
[1725892880999,7.8392,127.57,127.54,17.14018211]
[1725892881620,7.8394,127.56,127.55,0.72079079]
[1725892881832,7.8394,127.56,127.54,16.4296]
[1725892882839,7.84,127.55,127.53,6.0148]
[1725892883326,7.8394,127.57,127.53,6.0148]
[1725892883703,7.8394,127.57,127.54,0.60238652]
[1725892883903,7.8397,127.56,127.54,1.56791043]
[1725892884120,7.8397,127.56,127.53,6.0148]
[1725892884121,7.8397,127.56,127.55,1.56791241]
[1725892884524,7.8389,127.57,127.55,1.56791241]
[1725892884906,116.90627739,127.62,127.55,1.56791241]
[1725892884907,7.8363,127.62,127.55,1.56791241]
[1725892885120,7.8363,127.62,127.56,15.7961]
[1725892885435,7.8363,127.62,127.57,1.56715409]
[1725892885632,1.36147712,127.67,127.58,6.2315]
[1725892885830,10.15480713,127.68,127.58,6.2315]
[1725892885831,10.15480713,127.68,127.64,7.8345]
[1725892886028,7.8325,127.68,127.63,7.835]
[1725892886240,7.8316,127.69,127.65,1.56652024]
[1725892886534,7.8321,127.68,127.63,7.835]
[1725892886710,7.8321,127.68,127.64,1.56657088]
[1725892887321,7.8327,127.67,127.64,1.56657088]
[1725892887624,7.8335,127.66,127.62,19.5887]
[1725892887805,10.15480713,127.7,127.6,16.1134]
[1725892888138,79.18016833,127.69,127.6,16.1134]
[1725892888311,55.15480713,127.68,127.6,16.1134]
[1725892888818,79.18336833,127.67,127.6,16.1134]
[1725892889132,7.8351,127.63,127.6,16.1134]
[1725892889354,7.8359,127.62,127.6,16.1134]
[1725892890049,19.5827,127.67,127.6,16.1134]
[1725892890050,7.8351,127.63,127.6,16.1134]
[1725892890217,69.5827,127.67,127.6,16.1134]
[1725892890531,7.8363,127.61,127.58,6.2315]
[1725892890741,7.8363,127.61,127.56,35.2884]
[1725892890742,7.837,127.6,127.56,35.2884]
[1725892890938,19.5889,127.63,127.56,15.6904]
[1725892891142,45.0,127.62,127.56,15.6904]
[1725892891935,7.8371,127.6,127.56,15.6904]
[1725892892118,50.0,127.65,127.57,8.48758502]
[1725892892323,65.0,127.64,127.58,1.22403969]
[1725892892731,7.8358,127.62,127.59,1.26308594]
[1725892892915,7.8358,127.62,127.57,7.8383]
[1725892892916,45.40997546,127.66,127.58,7.8377]
[1725892893118,20.0,127.65,127.57,19.5961]
[1725892893923,20.0,127.65,127.58,1.2785051]
[1725892894125,7.8352,127.63,127.58,1.2785051]
[1725892894433,7.8346,127.64,127.59,19.5934]
[1725892894631,29.73440713,127.69,127.6,1.2783047]
[1725892894835,29.73440713,127.69,127.53,39.2061]
[1725892894836,10.15480713,127.69,127.61,41.7637]
[1725892895245,7.8331,127.67,127.62,7.8356]
[1725892895916,7.8331,127.67,127.63,7.8349]
[1725892897737,10.15480713,127.69,127.61,41.7637]
[1725892898119,7.8329,127.67,127.62,7.8352]
[1725892898518,7.8329,127.67,127.63,7.8346]
[1725892900241,17.45867394,127.71,127.64,0.87947796]
[1725892900751,19.5737,127.73,127.65,7.8335]
[1725892900752,7.8318,127.69,127.65,7.8335]
[1725892900943,7.8318,127.69,127.66,0.87934017]
[1725892902340,7.8318,127.69,127.65,7.8335]
[1725892902676,7.8327,127.67,127.63,27.4223]
[1725892903360,7.8333,127.66,127.63,19.5874]
[1725892903735,19.5758,127.71,127.63,19.5874]
[1725892904045,7.832,127.68,127.64,7.8343]
[1725892905855,7.8327,127.67,127.63,27.4221]
[1725892907052,7.8323,127.68,127.64,7.8344]
[1725892908156,19.5758,127.71,127.63,19.5874]
[1725892908157,7.8327,127.67,127.63,27.4221]
[1725892908532,19.5758,127.71,127.63,19.5874]
[1725892908729,7.8322,127.68,127.64,7.8344]
[1725892909156,7.8315,127.69,127.65,7.8337]
[1725892911454,7.831,127.7,127.66,7.8332]
[1725892911953,7.8303,127.71,127.67,27.4139]
[1725892912146,7.8303,127.71,127.67,43.4009]
[1725892912761,7.8297,127.72,127.68,7.8319]
[1725892913070,7.8297,127.72,127.68,14.0419]
[1725892913538,7.8312,127.7,127.68,6.21]
[1725892913736,7.8304,127.71,127.68,6.21]
[1725892914132,7.8304,127.71,127.69,1.29982534]
[1725892914760,7.8299,127.72,127.69,1.29982534]
[1725892914963,7.8292,127.73,127.69,9.13122534]
[1725892915892,7.8296,127.72,127.69,9.13122534]
[1725892916268,7.8296,127.72,127.69,1.29982534]
[1725892916467,7.8296,127.72,127.68,33.6219]
[1725892916772,7.8302,127.71,127.68,6.21]
[1725892919784,7.8308,127.7,127.68,6.21]
[1725892920473,19.75547546,127.76,127.67,15.987]
[1725892920678,19.75547546,127.76,127.64,6.6156]
[1725892920679,50.0,127.72,127.64,22.1132]
[1725892920893,7.8339,127.65,127.64,22.1132]
[1725892921081,50.0,127.74,127.64,22.1132]
[1725892921292,19.5748,127.72,127.64,22.1132]
[1725892921475,7.8317,127.69,127.65,7.8334]
[1725892921685,7.8317,127.69,127.64,41.6993]
[1725892921868,7.831,127.7,127.64,41.6993]
[1725892922067,7.8304,127.71,127.66,19.5829]
[1725892922288,7.8304,127.71,127.67,7.8322]
[1725892922988,7.8298,127.72,127.68,7.8319]
[1725892923572,29.72570713,127.75,127.68,19.5798]
[1725892923774,7.8296,127.72,127.68,27.4114]
[1725892923993,29.72570713,127.75,127.68,27.4114]
[1725892923994,7.8289,127.74,127.69,1.5644639]
[1725892924209,7.8289,127.74,127.7,24.3548]
[1725892924496,7.8289,127.74,127.7,16.524]
[1725892924680,7.8291,127.73,127.7,16.524]
[1725892925077,7.8291,127.73,127.68,19.5798]
[1725892925078,7.8302,127.71,127.67,24.3565]
[1725892926195,7.8302,127.71,127.67,16.524]
[1725892926491,7.8302,127.71,127.67,24.3566]
[1725892927076,7.8302,127.71,127.68,0.62163747]
[1725892927504,7.8298,127.72,127.68,8.45353747]
[1725892927797,19.5683,127.76,127.69,0.62158878]
[1725892927990,65.0,127.75,127.69,0.62158878]
[1725892928371,7.8292,127.73,127.69,0.62158878]
[1725892928595,7.8289,127.74,127.69,8.45258878]
[1725892928801,19.5683,127.76,127.69,8.45258878]
[1725892928802,7.829,127.73,127.69,8.45258878]
[1725892928993,7.8288,127.74,127.69,8.45258878]
[1725892929469,7.8288,127.74,127.7,7.8308]
[1725892929801,7.8288,127.74,127.71,1.56550063]
[1725892929972,7.8288,127.74,127.7,7.8308]
[1725892930789,19.5669,127.77,127.67,16.524]
[1725892930989,19.5669,127.77,127.68,7.8316]
[1725892931176,19.5669,127.77,127.69,0.62138554]
[1725892931376,7.8279,127.75,127.71,7.8301]
[1725892931594,7.8279,127.75,127.72,0.62123958]
[1725892931989,7.8275,127.76,127.72,0.62123958]
[1725892932210,1.36038279,127.79,127.72,1.56551929]
[1725892932388,9.18588279,127.79,127.75,7.8273]
[1725892932577,7.8248,127.8,127.76,9.39211663]
[1725892932877,7.8241,127.81,127.77,9.39151489]
[1725892933389,7.823,127.83,127.78,7.8258]
[1725892933597,7.823,127.83,127.8,16.1042]
[1725892934174,10.15480713,127.85,127.8,23.9288]
[1725892934384,7.8223,127.84,127.8,16.1042]
[1725892934808,10.15480713,127.85,127.81,7.8237]
[1725892934974,7.8216,127.85,127.81,7.8237]
[1725892935387,7.8211,127.86,127.81,7.8237]
[1725892935774,0.8374188,127.87,127.81,7.8237]
[1725892935775,7.8217,127.85,127.81,7.8237]
[1725892935978,7.8225,127.84,127.8,35.665]
[1725892936490,10.15480713,127.84,127.77,35.4176]
[1725892936695,17.97740713,127.84,127.78,7.8254]
[1725892937009,10.15480713,127.84,127.78,7.8254]
[1725892937184,17.97710713,127.84,127.79,7.8252]
[1725892937785,7.8223,127.84,127.8,7.8246]
[1725892938006,7.8218,127.85,127.8,7.8246]
[1725892938300,7.8218,127.85,127.81,7.824]
[1725892938499,0.8374188,127.87,127.81,7.824]
[1725892938500,7.8212,127.86,127.81,7.824]
[1725892939002,7.8212,127.86,127.82,1.56435577]
[1725892940180,0.8374188,127.87,127.82,1.56435577]
[1725892940575,0.8374188,127.87,127.84,7.8221]
[1725892940886,0.8374188,127.87,127.84,7.8222]
[1725892941195,0.8374188,127.87,127.86,7.821]
[1725892941901,0.8374188,127.87,127.85,19.5531]
[1725892944179,0.8374188,127.87,127.85,20.24998111]
[1725892944587,0.8374188,127.87,127.86,7.821]
[1725892946898,0.8374188,127.87,127.85,27.3746]
[1725892947211,0.8374188,127.87,127.86,7.821]
[1725892948699,0.8374188,127.87,127.85,27.3746]
[1725892948916,0.8374188,127.87,127.86,9.19559179]
[1725892949284,0.8374188,127.87,127.86,7.821]
[1725892950981,7.818,127.91,127.86,7.821]
[1725892950982,7.0854188,127.91,127.86,7.821]
[1725892951588,7.8193,127.89,127.85,19.5531]
[1725892952910,7.8186,127.9,127.85,19.5531]
[1725892953080,7.8186,127.9,127.86,7.8209]
[1725892953286,7.8193,127.89,127.85,19.5531]
[1725892953514,7.8193,127.89,127.85,27.3746]
[1725892954810,7.8193,127.89,127.85,19.5531]
[1725892955191,7.8193,127.89,127.85,27.3746]
[1725892955601,7.8204,127.87,127.83,23.7177]
[1725892955795,7.8199,127.88,127.84,9.3863136]
[1725892956131,7.8199,127.88,127.85,1.56408079]
[1725892956290,7.8193,127.89,127.85,7.8216]
[1725892956788,50.0,127.93,127.84,19.5555]
[1725892956789,7.82,127.88,127.84,27.3775]
[1725892957611,19.5436,127.92,127.83,15.895]
[1725892957612,19.5479,127.9,127.83,15.895]
[1725892957821,7.8222,127.84,127.83,15.895]
[1725892958005,7.821,127.87,127.83,15.895]
[1725892958191,45.0,127.86,127.83,15.895]
[1725892958395,52.8214,127.86,127.83,15.895]
[1725892958914,7.8217,127.85,127.83,15.895]
[1725892959297,52.821,127.86,127.83,15.895]
[1725892959503,7.8217,127.85,127.81,7.8239]
[1725892959817,7.8223,127.84,127.8,42.9227]
[1725892959990,45.0,127.86,127.8,35.0982]
[1725892960693,7.822,127.85,127.81,9.38719288]
[1725892961019,7.822,127.85,127.82,1.56347055]
[1725892961198,29.70260713,127.9,127.82,21.12197055]
[1725892961408,7.8205,127.87,127.83,7.8224]
[1725892961734,7.8205,127.87,127.84,1.56356928]
[1725892961896,7.8205,127.87,127.85,1.56413369]
[1725892962601,7.8205,127.87,127.84,1.56411796]
[1725892962805,7.821,127.86,127.82,27.3819]
[1725892963205,10.15480713,127.88,127.8,15.5376]
[1725892963206,29.70490713,127.88,127.8,15.5376]
[1725892963413,45.0,127.87,127.8,15.5376]
[1725892964313,7.822,127.85,127.81,7.824]
[1725892964528,7.8229,127.83,127.8,23.3621]
[1725892964739,7.8229,127.83,127.8,15.5376]
[1725892965041,19.5534,127.86,127.8,15.5376]
[1725892965235,7.8235,127.82,127.8,15.5376]
[1725892965408,19.5534,127.86,127.8,15.5376]
[1725892965409,7.823,127.83,127.8,15.5376]
[1725892968441,95.0,127.87,127.8,15.5376]
[1725892968714,7.8249,127.8,127.76,16.615]
[1725892968937,7.8249,127.8,127.76,24.4421]
[1725892970222,10.15480713,127.84,127.73,15.7156]
[1725892970223,7.827,127.77,127.73,15.7156]
[1725892970529,7.827,127.77,127.73,23.5442]
[1725892972126,16.5664,127.82,127.73,15.7156]
[1725892972306,7.8251,127.8,127.75,7.8273]
[1725892972510,7.8251,127.8,127.76,9.24853901]
[1725892972739,45.0,127.79,127.76,1.42143901]
[1725892973041,52.8255,127.79,127.76,1.42143901]
[1725892973535,52.8255,127.79,127.75,9.3928527]
[1725892973730,7.8255,127.79,127.75,7.8277]
[1725892973930,7.8255,127.79,127.76,1.5651563]
[1725892974412,7.8255,127.79,127.75,7.8277]
[1725892974816,7.8259,127.78,127.74,27.3979]
[1725892975137,19.5589,127.82,127.74,27.3979]
[1725892975138,7.8254,127.79,127.75,7.8277]
[1725892975739,45.0,127.78,127.75,7.8277]
[1725892975928,45.0,127.78,127.75,9.39297417]
[1725892976536,52.8259,127.78,127.75,1.56527417]
[1725892976710,52.8259,127.78,127.74,27.3981]
[1725892977137,19.5589,127.82,127.75,7.8276]
[1725892977138,7.8255,127.79,127.75,7.8276]
[1725892977332,7.8255,127.79,127.76,1.5651076]
[1725892977538,7.8255,127.79,127.75,7.8276]
[1725892978115,7.8255,127.79,127.76,1.56514135]
[1725892978609,7.8255,127.79,127.77,1.56513767]
[1725892978817,7.8255,127.79,127.75,7.8277]
[1725892979138,7.8259,127.78,127.75,7.8277]
[1725892979315,7.8259,127.78,127.74,27.3982]
[1725892979529,7.8259,127.78,127.74,28.96345865]
[1725892980343,7.825,127.8,127.76,7.8267]
[1725892980761,7.8253,127.79,127.75,7.8275]
[1725892982026,7.826,127.78,127.74,27.3981]
[1725892982430,7.8255,127.79,127.75,7.8277]
[1725892982634,7.8255,127.79,127.76,1.56512791]
[1725892982847,7.8255,127.79,127.75,7.8277]
[1725892983642,19.5589,127.82,127.74,27.3981]
[1725892983643,7.826,127.78,127.74,27.3981]
[1725892984248,19.5589,127.82,127.75,7.8276]
[1725892984249,7.8255,127.79,127.75,7.8276]
[1725892984446,7.8255,127.79,127.76,1.56524991]
[1725892984832,7.8255,127.79,127.75,7.8276]
[1725892985221,19.5589,127.82,127.74,19.57]
[1725892985222,7.8261,127.78,127.74,27.3981]
[1725892985441,19.75547546,127.8,127.75,9.39195681]
[1725892985442,7.8255,127.79,127.75,9.39195681]
[1725892985656,51.36186183,127.83,127.76,19.5674]
[1725892985827,20.0,127.82,127.73,35.2866]
[1725892986142,9.60066833,127.81,127.73,35.2866]
[1725892986343,7.8259,127.78,127.74,7.8279]
[1725892986735,7.8255,127.79,127.75,7.8277]
[1725892987663,7.8253,127.79,127.76,7.8271]
[1725892988152,7.8253,127.79,127.75,19.5692]
[1725892988358,7.8253,127.79,127.75,27.3968]
[1725892988658,7.826,127.78,127.75,19.5692]
[1725892989532,69.75547546,127.81,127.75,27.3964]
[1725892989533,7.8253,127.79,127.75,27.3964]
[1725892990990,19.75547546,127.81,127.73,15.7156]
[1725892990991,69.75547546,127.81,127.73,15.7156]
[1725892991149,7.8273,127.76,127.73,15.7156]
[1725892991351,7.8279,127.75,127.73,15.7156]
[1725892991658,7.8279,127.75,127.72,6.5884]
[1725892991848,19.5662,127.78,127.7,43.8984]
[1725892991849,52.8286,127.74,127.7,43.8984]
[1725892992038,52.8286,127.74,127.7,16.4909]
[1725892992039,7.8291,127.73,127.7,16.4909]
[1725892992244,7.8291,127.73,127.7,18.05612931]
[1725892992563,7.831,127.7,127.66,15.8509]
[1725892994265,7.831,127.7,127.66,17.41474106]